[Event "Titled Tuesday Blitz April 05 Early 2022"]
[White "Yushko, Olga"]
[Black "Martin Duque, Jesus"]
[WhiteFideId "14114500"]
[BlackFideId "2208954"]
[WhiteElo "2028"]
[BlackElo "2243"]
[Result "1-0"]
[Round "04"]
[TimeControl "180+1"]
[Date "2022.04.05"]
[WhiteClock "0:00:28"]
[BlackClock "0:00:09"]

1. d4 {[%clk 0:02:58]}  Nf6 {[%clk 0:02:58]} 2. c4 {[%clk 0:02:59]}  b6 {[%clk 0:02:58]} 3. Nc3 {[%clk 0:02:58]}  Bb7 {[%clk 0:02:58]} 4. Nf3 {[%clk 0:02:58]}  e6 {[%clk 0:02:57]} 5. Bg5 {[%clk 0:02:55]}  h6 {[%clk 0:02:55]} 6. Bh4 {[%clk 0:02:55]}  Be7 {[%clk 0:02:55]} 7. e3 {[%clk 0:02:55]}  c5 {[%clk 0:02:54]} 8. Be2 {[%clk 0:02:54]}  O-O {[%clk 0:02:54]} 9. Qc2 {[%clk 0:02:54]}  Nc6 {[%clk 0:02:51]} 10. Rd1 {[%clk 0:02:53]}  cxd4 {[%clk 0:02:51]} 11. exd4 {[%clk 0:02:50]}  d5 {[%clk 0:02:51]} 12. O-O {[%clk 0:02:48]}  dxc4 {[%clk 0:02:48]} 13. Bxc4 {[%clk 0:02:48]}  Nh5 {[%clk 0:02:48]} 14. Bxe7 {[%clk 0:02:45]}  Nxe7 {[%clk 0:02:48]} 15. Ne5 {[%clk 0:02:30]}  Nf4 {[%clk 0:02:45]} 16. f3 {[%clk 0:02:19]}  Nf5 {[%clk 0:02:45]} 17. Qd2 {[%clk 0:02:15]}  Qg5 {[%clk 0:02:39]} 18. Ne4 {[%clk 0:02:07]}  Bxe4 {[%clk 0:02:09]} 19. fxe4 {[%clk 0:02:07]}  Ne3 {[%clk 0:02:05]} 20. Rxf4 {[%clk 0:01:53]}  Qxf4 {[%clk 0:01:46]} 21. Re1 {[%clk 0:01:53]}  Nd5 {[%clk 0:01:44]} 22. Qd3 {[%clk 0:01:40]}  Nf6 {[%clk 0:01:33]} 23. g3 {[%clk 0:01:40]}  Qg5 {[%clk 0:01:26]} 24. Qf3 {[%clk 0:01:34]}  Rac8 {[%clk 0:01:14]} 25. b3 {[%clk 0:01:31]}  Rfd8 {[%clk 0:01:12]} 26. Rd1 {[%clk 0:01:12]}  Rc7 {[%clk 0:00:55]} 27. a4 {[%clk 0:01:01]}  a5 {[%clk 0:00:54]} 28. h4 {[%clk 0:00:54]}  Qh5 {[%clk 0:00:53]} 29. Qf1 {[%clk 0:00:54]}  Rxd4 {[%clk 0:00:53]} 30. Rxd4 {[%clk 0:00:50]}  Qxe5 {[%clk 0:00:54]} 31. Rd8+ {[%clk 0:00:49]}  Kh7 {[%clk 0:00:54]} 32. Qf4 {[%clk 0:00:46]}  Qxf4 {[%clk 0:00:40]} 33. gxf4 {[%clk 0:00:47]}  Rd7 {[%clk 0:00:30]} 34. Rb8 {[%clk 0:00:42]}  Nxe4 {[%clk 0:00:26]} 35. Rxb6 {[%clk 0:00:42]}  Nd2 {[%clk 0:00:25]} 36. Be2 {[%clk 0:00:39]}  Rd4 {[%clk 0:00:25]} 37. f5 {[%clk 0:00:35]}  exf5 {[%clk 0:00:24]} 38. Rb5 {[%clk 0:00:36]}  g6 {[%clk 0:00:24]} 39. Rxa5 {[%clk 0:00:35]}  Nxb3 {[%clk 0:00:24]} 40. Ra7 {[%clk 0:00:35]}  Kg7 {[%clk 0:00:23]} 41. Rc7 {[%clk 0:00:35]}  Rxh4 {[%clk 0:00:23]} 42. Bc4 {[%clk 0:00:35]}  Rg4+ {[%clk 0:00:21]} 43. Kf2 {[%clk 0:00:34]}  Rf4+ {[%clk 0:00:15]} 44. Ke3 {[%clk 0:00:32]}  Re4+ {[%clk 0:00:16]} 45. Kd3 {[%clk 0:00:31]}  Nc1+ {[%clk 0:00:15]} 46. Kd2 {[%clk 0:00:31]}  h5 {[%clk 0:00:11]} 47. Kxc1 {[%clk 0:00:30]}  h4 {[%clk 0:00:12]} 48. Bxf7 {[%clk 0:00:29]}  Kh6 {[%clk 0:00:10]} 49. Rc6 {[%clk 0:00:29]}  Rg4 {[%clk 0:00:10]} 50. Bd5 {[%clk 0:00:28]}  h3 {[%clk 0:00:10]} 51. a5 {[%clk 0:00:28]}  h2 {[%clk 0:00:10]} 52. a6 {[%clk 0:00:28]}  Rg1+ {[%clk 0:00:10]} 53. Kb2 {[%clk 0:00:28]}  h1=Q {[%clk 0:00:11]} 54. Bxh1 {[%clk 0:00:28]}  Rxh1 {[%clk 0:00:12]} 55. a7 {[%clk 0:00:28]}  Rh2+ {[%clk 0:00:11]} 56. Rc2 {[%clk 0:00:28]}  Rh4 {[%clk 0:00:09]} 57. a8=Q {[%clk 0:00:28]} 1-0


[Site "https://www.chess.com"]

[Event "Titled Tuesday Blitz April 05 Early 2022"]
[White "Zlatin, Alexander"]
[Black "Samant Aditya S"]
[WhiteFideId "2810549"]
[BlackFideId "35080580"]
[WhiteElo "2228"]
[BlackElo "1916"]
[Result "0-1"]
[Round "04"]
[TimeControl "180+1"]
[Date "2022.04.05"]
[WhiteClock "0:00:02"]
[BlackClock "0:00:07"]

1. d4 {[%clk 0:02:54]}  Nf6 {[%clk 0:02:59]} 2. Nc3 {[%clk 0:02:55]}  d5 {[%clk 0:02:58]} 3. Bf4 {[%clk 0:02:55]}  c5 {[%clk 0:02:57]} 4. e3 {[%clk 0:02:51]}  cxd4 {[%clk 0:02:57]} 5. exd4 {[%clk 0:02:52]}  Bg4 {[%clk 0:02:58]} 6. f3 {[%clk 0:02:52]}  Bd7 {[%clk 0:02:58]} 7. Bd3 {[%clk 0:02:49]}  Nc6 {[%clk 0:02:49]} 8. Nge2 {[%clk 0:02:48]}  a6 {[%clk 0:02:46]} 9. O-O {[%clk 0:02:44]}  e6 {[%clk 0:02:46]} 10. a3 {[%clk 0:02:34]}  Be7 {[%clk 0:02:46]} 11. b4 {[%clk 0:02:34]}  O-O {[%clk 0:02:46]} 12. b5 {[%clk 0:02:17]}  Na5 {[%clk 0:02:32]} 13. bxa6 {[%clk 0:02:09]}  bxa6 {[%clk 0:02:33]} 14. Qd2 {[%clk 0:02:00]}  Qc8 {[%clk 0:02:28]} 15. Nxd5 {[%clk 0:01:48]}  Nxd5 {[%clk 0:02:29]} 16. Qxa5 {[%clk 0:01:47]}  Nxf4 {[%clk 0:02:17]} 17. Nxf4 {[%clk 0:01:48]}  Bf6 {[%clk 0:01:23]} 18. c3 {[%clk 0:01:47]}  g6 {[%clk 0:01:00]} 19. Kh1 {[%clk 0:01:46]}  Bd8 {[%clk 0:00:59]} 20. Qe5 {[%clk 0:01:15]}  Qxc3 {[%clk 0:00:55]} 21. Rfc1 {[%clk 0:01:07]}  Qa5 {[%clk 0:00:36]} 22. Rc5 {[%clk 0:01:05]}  Qd2 {[%clk 0:00:30]} 23. Rc2 {[%clk 0:00:54]}  Qa5 {[%clk 0:00:30]} 24. Qd6 {[%clk 0:00:48]}  Bb5 {[%clk 0:00:21]} 25. Rc5 {[%clk 0:00:42]}  Qb6 {[%clk 0:00:16]} 26. Qe5 {[%clk 0:00:32]}  Bxd3 {[%clk 0:00:12]} 27. Nxd3 {[%clk 0:00:33]}  Be7 {[%clk 0:00:12]} 28. Rc4 {[%clk 0:00:23]}  Rfc8 {[%clk 0:00:09]} 29. Rxc8+ {[%clk 0:00:19]}  Rxc8 {[%clk 0:00:10]} 30. h3 {[%clk 0:00:18]}  Bd6 {[%clk 0:00:09]} 31. Qe4 {[%clk 0:00:17]}  Qc6 {[%clk 0:00:08]} 32. Qxc6 {[%clk 0:00:15]}  Rxc6 {[%clk 0:00:09]} 33. Rb1 {[%clk 0:00:15]}  Rc4 {[%clk 0:00:08]} 34. Ne5 {[%clk 0:00:07]}  Rxd4 {[%clk 0:00:07]} 35. Nc6 {[%clk 0:00:06]}  Rd2 {[%clk 0:00:07]} 36. a4 {[%clk 0:00:05]}  Kg7 {[%clk 0:00:07]} 37. a5 {[%clk 0:00:04]}  Ra2 {[%clk 0:00:07]} 38. h4 {[%clk 0:00:02]}  Bg3 {[%clk 0:00:07]} 39. Kg1 {[%clk 0:00:02]}  Bxh4 {[%clk 0:00:06]} 40. Kf1 {[%clk 0:00:03]}  Bg3 {[%clk 0:00:05]} 41. Rb6 {[%clk 0:00:03]}  Rf2+ {[%clk 0:00:05]} 42. Kg1 {[%clk 0:00:02]}  Rc2 {[%clk 0:00:05]} 43. Kf1 {[%clk 0:00:03]}  Rf2+ {[%clk 0:00:05]} 44. Kg1 {[%clk 0:00:03]}  Rc2 {[%clk 0:00:06]} 45. Kf1 {[%clk 0:00:04]}  Rc1+ {[%clk 0:00:06]} 46. Ke2 {[%clk 0:00:04]}  Rg1 {[%clk 0:00:07]} 47. Rxa6 {[%clk 0:00:04]}  Rxg2+ {[%clk 0:00:08]} 48. Kd3 {[%clk 0:00:04]}  Ra2 {[%clk 0:00:08]} 49. Ra8 {[%clk 0:00:03]}  Bf2 {[%clk 0:00:08]} 50. a6 {[%clk 0:00:03]}  h5 {[%clk 0:00:09]} 51. a7 {[%clk 0:00:04]}  h4 {[%clk 0:00:08]} 52. Rb8 {[%clk 0:00:02]}  Bxa7 {[%clk 0:00:08]} 53. Ra8 {[%clk 0:00:03]}  h3 {[%clk 0:00:05]} 54. Ne5 {[%clk 0:00:03]}  h2 {[%clk 0:00:05]} 55. Rc8 {[%clk 0:00:02]}  h1=Q {[%clk 0:00:04]} 56. Rc7 {[%clk 0:00:03]}  Qd1+ {[%clk 0:00:05]} 57. Ke4 {[%clk 0:00:03]}  Re2+ {[%clk 0:00:06]} 58. Kf4 {[%clk 0:00:03]}  Qd4+ {[%clk 0:00:06]} 59. Kg3 {[%clk 0:00:02]}  Qxe5+ {[%clk 0:00:07]} 60. Kg4 {[%clk 0:00:02]}  Qf5+ {[%clk 0:00:07]} 61. Kh4 {[%clk 0:00:02]}  Bf2# {[%clk 0:00:07]} 0-1


[Site "https://www.chess.com"]

[Event "Titled Tuesday Blitz April 05 Early 2022"]
[White "Agibileg, Uurtsaikh"]
[Black "Li, Xueyi"]
[WhiteFideId "4901606"]
[BlackFideId "8605912"]
[WhiteElo "2205"]
[BlackElo "2091"]
[Result "1-0"]
[Round "05"]
[TimeControl "180+1"]
[Date "2022.04.05"]
[WhiteClock "0:00:17"]
[BlackClock "0:00:35"]

1. d4 {[%clk 0:03:00]}  Nf6 {[%clk 0:02:57]} 2. c4 {[%clk 0:02:57]}  g6 {[%clk 0:02:56]} 3. Nc3 {[%clk 0:02:57]}  d5 {[%clk 0:02:56]} 4. cxd5 {[%clk 0:02:58]}  Nxd5 {[%clk 0:02:55]} 5. e4 {[%clk 0:02:58]}  Nxc3 {[%clk 0:02:54]} 6. bxc3 {[%clk 0:02:59]}  Bg7 {[%clk 0:02:54]} 7. Nf3 {[%clk 0:03:00]}  c5 {[%clk 0:02:54]} 8. Bb5+ {[%clk 0:03:00]}  Bd7 {[%clk 0:02:52]} 9. Be2 {[%clk 0:03:01]}  O-O {[%clk 0:02:52]} 10. O-O {[%clk 0:03:01]}  Bg4 {[%clk 0:02:48]} 11. Rb1 {[%clk 0:03:01]}  b6 {[%clk 0:02:48]} 12. Be3 {[%clk 0:02:59]}  Nc6 {[%clk 0:02:43]} 13. d5 {[%clk 0:02:47]}  Na5 {[%clk 0:02:43]} 14. c4 {[%clk 0:02:40]}  Nb7 {[%clk 0:02:43]} 15. h3 {[%clk 0:02:37]}  Bxf3 {[%clk 0:02:38]} 16. Bxf3 {[%clk 0:02:38]}  Nd6 {[%clk 0:02:35]} 17. Qc2 {[%clk 0:02:38]}  f5 {[%clk 0:02:34]} 18. Rfe1 {[%clk 0:02:28]}  f4 {[%clk 0:02:17]} 19. Bc1 {[%clk 0:02:28]}  Qc8 {[%clk 0:02:13]} 20. Bg4 {[%clk 0:02:26]}  Qa6 {[%clk 0:02:12]} 21. Be6+ {[%clk 0:02:24]}  Kh8 {[%clk 0:02:11]} 22. Bb2 {[%clk 0:02:24]}  Qxc4 {[%clk 0:02:09]} 23. Bxg7+ {[%clk 0:02:21]}  Kxg7 {[%clk 0:02:09]} 24. Qb2+ {[%clk 0:02:19]}  Qd4 {[%clk 0:02:01]} 25. Qxd4+ {[%clk 0:02:12]}  cxd4 {[%clk 0:02:01]} 26. Rb4 {[%clk 0:02:10]}  d3 {[%clk 0:02:00]} 27. Rd4 {[%clk 0:02:10]}  f3 {[%clk 0:01:53]} 28. e5 {[%clk 0:02:03]}  Nf5 {[%clk 0:01:49]} 29. Rxd3 {[%clk 0:01:46]}  fxg2 {[%clk 0:01:50]} 30. Rc1 {[%clk 0:01:40]}  Nh4 {[%clk 0:01:45]} 31. Re3 {[%clk 0:01:28]}  Kh6 {[%clk 0:01:28]} 32. Rc4 {[%clk 0:01:25]}  g5 {[%clk 0:01:26]} 33. Rxh4+ {[%clk 0:01:05]}  gxh4 {[%clk 0:01:25]} 34. Re4 {[%clk 0:01:02]}  Kh5 {[%clk 0:01:13]} 35. Kxg2 {[%clk 0:01:00]}  a5 {[%clk 0:01:10]} 36. Rg4 {[%clk 0:00:50]}  Ra7 {[%clk 0:01:01]} 37. f4 {[%clk 0:00:47]}  Rc7 {[%clk 0:01:00]} 38. f5 {[%clk 0:00:41]}  Rc2+ {[%clk 0:00:56]} 39. Kf1 {[%clk 0:00:39]}  Rc1+ {[%clk 0:00:55]} 40. Ke2 {[%clk 0:00:38]}  Rc3 {[%clk 0:00:54]} 41. Rg7 {[%clk 0:00:37]}  Kh6 {[%clk 0:00:53]} 42. Rxe7 {[%clk 0:00:37]}  Rxh3 {[%clk 0:00:52]} 43. f6 {[%clk 0:00:29]}  Rh2+ {[%clk 0:00:51]} 44. Kf3 {[%clk 0:00:28]}  Rxa2 {[%clk 0:00:49]} 45. f7 {[%clk 0:00:26]}  Ra3+ {[%clk 0:00:47]} 46. Kg2 {[%clk 0:00:25]}  Rg3+ {[%clk 0:00:44]} 47. Kh2 {[%clk 0:00:25]}  a4 {[%clk 0:00:44]} 48. Re8 {[%clk 0:00:24]}  Rxf7 {[%clk 0:00:44]} 49. Bxf7 {[%clk 0:00:25]}  a3 {[%clk 0:00:45]} 50. d6 {[%clk 0:00:24]}  Rd3 {[%clk 0:00:40]} 51. Ra8 {[%clk 0:00:18]}  b5 {[%clk 0:00:40]} 52. e6 {[%clk 0:00:19]}  Rxd6 {[%clk 0:00:35]} 53. e7 {[%clk 0:00:17]}  Rd2+ {[%clk 0:00:35]} 54. Kh3 {[%clk 0:00:18]}  Rd3+ {[%clk 0:00:35]} 55. Kxh4 {[%clk 0:00:18]}  Rd4+ {[%clk 0:00:36]} 56. Kg3 {[%clk 0:00:17]}  Rd3+ {[%clk 0:00:35]} 57. Kf2 {[%clk 0:00:17]} 1-0


[Site "https://www.chess.com"]

[Event "Titled Tuesday Blitz April 05 Early 2022"]
[White "Alboredo, Julia"]
[Black "Chincholimath, Halsagar"]
[WhiteFideId "2124807"]
[BlackFideId "5022487"]
[WhiteElo "2041"]
[BlackElo "1737"]
[Result "1/2-1/2"]
[Round "05"]
[TimeControl "180+1"]
[Date "2022.04.05"]
[WhiteClock "0:00:10"]
[BlackClock "0:00:10"]

1. e4 {[%clk 0:03:00]}  d5 {[%clk 0:02:58]} 2. exd5 {[%clk 0:02:59]}  Qxd5 {[%clk 0:02:59]} 3. Nc3 {[%clk 0:02:59]}  Qd8 {[%clk 0:02:59]} 4. d4 {[%clk 0:02:57]}  c6 {[%clk 0:02:54]} 5. Nf3 {[%clk 0:02:56]}  Bg4 {[%clk 0:02:53]} 6. Be2 {[%clk 0:02:56]}  Bxf3 {[%clk 0:02:47]} 7. Bxf3 {[%clk 0:02:52]}  e6 {[%clk 0:02:47]} 8. O-O {[%clk 0:02:46]}  Nf6 {[%clk 0:02:47]} 9. Bg5 {[%clk 0:02:41]}  Nbd7 {[%clk 0:02:43]} 10. Qd2 {[%clk 0:02:39]}  Qc7 {[%clk 0:02:39]} 11. a3 {[%clk 0:02:21]}  a5 {[%clk 0:02:37]} 12. Rfe1 {[%clk 0:02:12]}  Be7 {[%clk 0:02:29]} 13. Bf4 {[%clk 0:02:00]}  Qb6 {[%clk 0:02:28]} 14. Na4 {[%clk 0:01:40]}  Qb5 {[%clk 0:02:27]} 15. b3 {[%clk 0:01:39]}  O-O {[%clk 0:02:17]} 16. h3 {[%clk 0:01:19]}  Rfd8 {[%clk 0:02:14]} 17. Nc3 {[%clk 0:01:06]}  Qf5 {[%clk 0:01:53]} 18. Ne4 {[%clk 0:00:57]}  Nxe4 {[%clk 0:01:47]} 19. Bxe4 {[%clk 0:00:58]}  Qh5 {[%clk 0:01:46]} 20. Qe3 {[%clk 0:00:57]}  Nf6 {[%clk 0:01:28]} 21. Bf3 {[%clk 0:00:56]}  Qf5 {[%clk 0:01:17]} 22. c4 {[%clk 0:00:56]}  Rd7 {[%clk 0:00:50]} 23. a4 {[%clk 0:00:55]}  c5 {[%clk 0:00:48]} 24. dxc5 {[%clk 0:00:38]}  Bxc5 {[%clk 0:00:47]} 25. Qe5 {[%clk 0:00:38]}  Qxe5 {[%clk 0:00:40]} 26. Bxe5 {[%clk 0:00:39]}  Rd2 {[%clk 0:00:36]} 27. Re2 {[%clk 0:00:35]}  Rxe2 {[%clk 0:00:35]} 28. Bxe2 {[%clk 0:00:36]}  Rd8 {[%clk 0:00:35]} 29. Rd1 {[%clk 0:00:36]}  Rxd1+ {[%clk 0:00:33]} 30. Bxd1 {[%clk 0:00:37]}  Ne4 {[%clk 0:00:32]} 31. Bf3 {[%clk 0:00:32]}  Nxf2 {[%clk 0:00:29]} 32. Kf1 {[%clk 0:00:32]}  Nd3 {[%clk 0:00:27]} 33. Bc7 {[%clk 0:00:22]}  b6 {[%clk 0:00:26]} 34. Bd1 {[%clk 0:00:18]}  f6 {[%clk 0:00:26]} 35. Ke2 {[%clk 0:00:18]}  Nb4 {[%clk 0:00:23]} 36. Kf3 {[%clk 0:00:17]}  Kf7 {[%clk 0:00:23]} 37. g4 {[%clk 0:00:17]}  g5 {[%clk 0:00:23]} 38. Bg3 {[%clk 0:00:17]}  Nc6 {[%clk 0:00:23]} 39. Be1 {[%clk 0:00:13]}  Ke7 {[%clk 0:00:22]} 40. Ke4 {[%clk 0:00:13]}  Kd6 {[%clk 0:00:22]} 41. h4 {[%clk 0:00:14]}  h6 {[%clk 0:00:21]} 42. hxg5 {[%clk 0:00:13]}  hxg5 {[%clk 0:00:22]} 43. Bg3+ {[%clk 0:00:14]}  Kd7 {[%clk 0:00:20]} 44. Be1 {[%clk 0:00:14]}  Ne5 {[%clk 0:00:20]} 45. Bc3 {[%clk 0:00:13]}  Bd6 {[%clk 0:00:16]} 46. Bd4 {[%clk 0:00:13]}  Bc7 {[%clk 0:00:15]} 47. c5 {[%clk 0:00:12]}  bxc5 {[%clk 0:00:13]} 48. Bxc5 {[%clk 0:00:13]}  Nc6 {[%clk 0:00:12]} 49. Be2 {[%clk 0:00:13]}  Nb4 {[%clk 0:00:11]} 50. Bb5+ {[%clk 0:00:13]}  Kd8 {[%clk 0:00:09]} 51. Bd4 {[%clk 0:00:12]}  e5 {[%clk 0:00:08]} 52. Bc5 {[%clk 0:00:12]}  Nc2 {[%clk 0:00:08]} 53. Kd3 {[%clk 0:00:12]}  Nd4 {[%clk 0:00:07]} 54. Bxd4 {[%clk 0:00:11]}  exd4 {[%clk 0:00:08]} 55. Kxd4 {[%clk 0:00:12]}  Ke7 {[%clk 0:00:09]} 56. Ke4 {[%clk 0:00:12]}  Be5 {[%clk 0:00:09]} 57. Bc4 {[%clk 0:00:11]}  Bc3 {[%clk 0:00:09]} 58. Bd3 {[%clk 0:00:12]}  Bb4 {[%clk 0:00:09]} 59. Kd5 {[%clk 0:00:12]}  Be1 {[%clk 0:00:09]} 60. Bf5 {[%clk 0:00:13]}  Bb4 {[%clk 0:00:09]} 61. Kc4 {[%clk 0:00:12]}  Be1 {[%clk 0:00:10]} 62. Kd5 {[%clk 0:00:10]}  Bb4 {[%clk 0:00:10]} 63. Kc4 {[%clk 0:00:10]}  Be1 {[%clk 0:00:10]} 64. Kd5 {[%clk 0:00:10]} 1/2-1/2


[Site "https://www.chess.com"]

[Event "Titled Tuesday Blitz April 05 Early 2022"]
[White "Arabidze, Meri"]
[Black "Yordanov, Nikolay Plamenov"]
[WhiteFideId "13604040"]
[BlackFideId "2907445"]
[WhiteElo "2335"]
[BlackElo "2248"]
[Result "1-0"]
[Round "05"]
[TimeControl "180+1"]
[Date "2022.04.05"]
[WhiteClock "0:00:31"]
[BlackClock "0:00:39"]

1. Nf3 {[%clk 0:03:00]}  Nf6 {[%clk 0:02:51]} 2. b3 {[%clk 0:03:01]}  g6 {[%clk 0:02:49]} 3. Bb2 {[%clk 0:03:01]}  Bg7 {[%clk 0:02:50]} 4. g3 {[%clk 0:03:02]}  O-O {[%clk 0:02:49]} 5. Bg2 {[%clk 0:03:02]}  d5 {[%clk 0:02:49]} 6. O-O {[%clk 0:03:03]}  c6 {[%clk 0:02:46]} 7. c4 {[%clk 0:03:02]}  Bg4 {[%clk 0:02:46]} 8. d3 {[%clk 0:03:02]}  Nbd7 {[%clk 0:02:44]} 9. Nbd2 {[%clk 0:03:01]}  Re8 {[%clk 0:02:43]} 10. h3 {[%clk 0:03:01]}  Bxf3 {[%clk 0:02:43]} 11. Nxf3 {[%clk 0:03:02]}  e5 {[%clk 0:02:42]} 12. b4 {[%clk 0:02:50]}  d4 {[%clk 0:02:42]} 13. Nd2 {[%clk 0:02:45]}  Qe7 {[%clk 0:02:33]} 14. a3 {[%clk 0:02:45]}  h5 {[%clk 0:02:33]} 15. c5 {[%clk 0:02:35]}  a6 {[%clk 0:02:27]} 16. Nc4 {[%clk 0:02:32]}  Rab8 {[%clk 0:02:18]} 17. e3 {[%clk 0:02:18]}  dxe3 {[%clk 0:02:15]} 18. fxe3 {[%clk 0:02:18]}  Nd5 {[%clk 0:02:09]} 19. Qe2 {[%clk 0:02:13]}  Rf8 {[%clk 0:01:47]} 20. e4 {[%clk 0:02:05]}  Nc7 {[%clk 0:01:45]} 21. Rf2 {[%clk 0:02:02]}  Ne6 {[%clk 0:01:43]} 22. Raf1 {[%clk 0:02:01]}  f6 {[%clk 0:01:41]} 23. h4 {[%clk 0:02:00]}  Nd4 {[%clk 0:01:31]} 24. Bxd4 {[%clk 0:01:54]}  exd4 {[%clk 0:01:32]} 25. Bh3 {[%clk 0:01:54]}  Ne5 {[%clk 0:01:32]} 26. Nd6 {[%clk 0:00:53]}  Rbd8 {[%clk 0:01:30]} 27. g4 {[%clk 0:00:52]}  hxg4 {[%clk 0:01:26]} 28. Bxg4 {[%clk 0:00:53]}  Nf7 {[%clk 0:01:17]} 29. h5 {[%clk 0:00:38]}  Nxd6 {[%clk 0:00:55]} 30. cxd6 {[%clk 0:00:39]}  Qxd6 {[%clk 0:00:55]} 31. hxg6 {[%clk 0:00:36]}  Qg3+ {[%clk 0:00:54]} 32. Rg2 {[%clk 0:00:36]}  Qe3+ {[%clk 0:00:54]} 33. Qxe3 {[%clk 0:00:36]}  dxe3 {[%clk 0:00:55]} 34. Be6+ {[%clk 0:00:36]}  Kh8 {[%clk 0:00:45]} 35. Rh2+ {[%clk 0:00:36]}  Bh6 {[%clk 0:00:45]} 36. Rxh6+ {[%clk 0:00:36]}  Kg7 {[%clk 0:00:46]} 37. Rh7+ {[%clk 0:00:36]}  Kxg6 {[%clk 0:00:46]} 38. Bf5+ {[%clk 0:00:37]}  Kg5 {[%clk 0:00:46]} 39. Rg7+ {[%clk 0:00:31]}  Kh6 {[%clk 0:00:44]} 40. Rg6+ {[%clk 0:00:31]}  Kh5 {[%clk 0:00:39]} 41. Kg2 {[%clk 0:00:31]} 1-0


[Site "https://www.chess.com"]

[Event "Titled Tuesday Blitz April 05 Early 2022"]
[White "Begunov, Konstantin"]
[Black "Rosenberg, Evan S"]
[WhiteFideId "4118510"]
[BlackFideId "2019299"]
[WhiteElo "2262"]
[BlackElo "2270"]
[Result "1-0"]
[Round "05"]
[TimeControl "180+1"]
[Date "2022.04.05"]
[WhiteClock "0:01:02"]
[BlackClock "0:00:02"]

1. d4 {[%clk 0:03:00]}  Nf6 {[%clk 0:02:59]} 2. c4 {[%clk 0:03:00]}  e6 {[%clk 0:02:59]} 3. Nf3 {[%clk 0:03:00]}  Bb4+ {[%clk 0:02:59]} 4. Nbd2 {[%clk 0:03:00]}  b6 {[%clk 0:02:58]} 5. a3 {[%clk 0:03:00]}  Bxd2+ {[%clk 0:02:56]} 6. Bxd2 {[%clk 0:03:01]}  Bb7 {[%clk 0:02:54]} 7. Bg5 {[%clk 0:03:00]}  h6 {[%clk 0:02:52]} 8. Bh4 {[%clk 0:03:00]}  d6 {[%clk 0:02:50]} 9. e3 {[%clk 0:03:00]}  c5 {[%clk 0:02:47]} 10. dxc5 {[%clk 0:02:54]}  bxc5 {[%clk 0:02:44]} 11. Be2 {[%clk 0:02:54]}  O-O {[%clk 0:02:31]} 12. O-O {[%clk 0:02:53]}  d5 {[%clk 0:02:26]} 13. cxd5 {[%clk 0:02:52]}  exd5 {[%clk 0:02:24]} 14. Qb3 {[%clk 0:02:42]}  Bc6 {[%clk 0:02:24]} 15. Ne5 {[%clk 0:02:32]}  Be8 {[%clk 0:02:07]} 16. Qb7 {[%clk 0:02:18]}  Nbd7 {[%clk 0:01:42]} 17. Nc6 {[%clk 0:02:17]}  Rb8 {[%clk 0:00:51]} 18. Nxd8 {[%clk 0:02:08]}  Rxb7 {[%clk 0:00:51]} 19. Nxb7 {[%clk 0:02:08]}  g5 {[%clk 0:00:51]} 20. Bg3 {[%clk 0:02:06]}  Ne4 {[%clk 0:00:52]} 21. Rac1 {[%clk 0:01:59]}  c4 {[%clk 0:00:46]} 22. Nd6 {[%clk 0:01:51]}  Ndf6 {[%clk 0:00:44]} 23. Nxe8 {[%clk 0:01:49]}  Rxe8 {[%clk 0:00:44]} 24. Rfd1 {[%clk 0:01:49]}  h5 {[%clk 0:00:36]} 25. Bf3 {[%clk 0:01:45]}  h4 {[%clk 0:00:34]} 26. Bxe4 {[%clk 0:01:45]}  Nxe4 {[%clk 0:00:31]} 27. Bc7 {[%clk 0:01:45]}  Rc8 {[%clk 0:00:27]} 28. Ba5 {[%clk 0:01:45]}  Rc5 {[%clk 0:00:24]} 29. Bb4 {[%clk 0:01:42]}  Rb5 {[%clk 0:00:25]} 30. Bc3 {[%clk 0:01:41]}  g4 {[%clk 0:00:14]} 31. f3 {[%clk 0:01:41]}  gxf3 {[%clk 0:00:14]} 32. gxf3 {[%clk 0:01:42]}  Ng5 {[%clk 0:00:15]} 33. Kf2 {[%clk 0:01:40]}  h3 {[%clk 0:00:13]} 34. Rd4 {[%clk 0:01:39]}  Kf8 {[%clk 0:00:12]} 35. Rcd1 {[%clk 0:01:36]}  Ne6 {[%clk 0:00:10]} 36. Rxd5 {[%clk 0:01:36]}  Rb3 {[%clk 0:00:10]} 37. Ra5 {[%clk 0:01:32]}  Rb7 {[%clk 0:00:08]} 38. Kg3 {[%clk 0:01:31]}  Ke7 {[%clk 0:00:07]} 39. Kxh3 {[%clk 0:01:31]}  f6 {[%clk 0:00:06]} 40. Rad5 {[%clk 0:01:24]}  Ng5+ {[%clk 0:00:05]} 41. Kg3 {[%clk 0:01:24]}  Rb8 {[%clk 0:00:05]} 42. Rd7+ {[%clk 0:01:23]}  Ke6 {[%clk 0:00:03]} 43. R1d6+ {[%clk 0:01:21]}  Kf5 {[%clk 0:00:04]} 44. e4+ {[%clk 0:01:22]}  Kg6 {[%clk 0:00:05]} 45. Rxf6+ {[%clk 0:01:22]}  Kh5 {[%clk 0:00:05]} 46. Rdd6 {[%clk 0:01:14]}  Rh8 {[%clk 0:00:03]} 47. Bd2 {[%clk 0:01:08]}  a5 {[%clk 0:00:02]} 48. Rg6 {[%clk 0:01:05]}  Nxe4+ {[%clk 0:00:01]} 49. fxe4 {[%clk 0:01:03]}  Rg8 {[%clk 0:00:02]} 50. Rxg8 {[%clk 0:01:02]}  a4 {[%clk 0:00:02]} 51. Rh6# {[%clk 0:01:02]} 1-0


[Site "https://www.chess.com"]

[Event "Titled Tuesday Blitz April 05 Early 2022"]
[White "Cagara, Paulina"]
[Black "Plazuelo Pascual, Juan"]
[WhiteFideId "1124870"]
[BlackFideId "32059566"]
[WhiteElo "1780"]
[BlackElo "2359"]
[Result "1-0"]
[Round "05"]
[TimeControl "180+1"]
[Date "2022.04.05"]
[WhiteClock "0:02:10"]
[BlackClock "0:01:33"]

1. e4 {[%clk 0:03:00]}  e5 {[%clk 0:02:59]} 2. Nf3 {[%clk 0:02:59]}  Nc6 {[%clk 0:03:00]} 3. c3 {[%clk 0:02:59]}  Nf6 {[%clk 0:02:59]} 4. d4 {[%clk 0:02:58]}  Nxe4 {[%clk 0:02:13]} 5. d5 {[%clk 0:02:58]}  Ne7 {[%clk 0:02:13]} 6. Nxe5 {[%clk 0:02:55]}  d6 {[%clk 0:02:12]} 7. Bb5+ {[%clk 0:02:47]}  c6 {[%clk 0:01:46]} 8. dxc6 {[%clk 0:02:46]}  Qb6 {[%clk 0:01:34]} 9. cxb7+ {[%clk 0:02:35]}  Kd8 {[%clk 0:01:34]} 10. Nxf7+ {[%clk 0:02:23]}  Kc7 {[%clk 0:01:34]} 11. bxa8=N+ {[%clk 0:02:18]}  Kb8 {[%clk 0:01:34]} 12. Nxb6 {[%clk 0:02:17]}  axb6 {[%clk 0:01:34]} 13. Nxd6 {[%clk 0:02:15]}  Nc5 {[%clk 0:01:33]} 14. Bf4 {[%clk 0:02:10]} 1-0


[Site "https://www.chess.com"]